[Event "Titled Tuesday Blitz May 30 Early 2023"]
[White "Nihal Sarin"]
[Black "Deac, Bogdan-Daniel"]
[WhiteFideId "25092340"]
[BlackFideId "1226380"]
[WhiteElo "2689"]
[BlackElo "2649"]
[Result "1-0"]
[Round "06"]
[TimeControl "180+2"]
[Date "2023.05.30"]
[WhiteClock "0:00:05"]
[BlackClock "0:00:02"]

1. e4 {[%clk 0:03:00]}  e5 {[%clk 0:03:00]} 2. Nf3 {[%clk 0:03:01]}  Nf6 {[%clk 0:03:00]} 3. Nxe5 {[%clk 0:02:55]}  d6 {[%clk 0:03:00]} 4. Nf3 {[%clk 0:02:55]}  Nxe4 {[%clk 0:03:00]} 5. d4 {[%clk 0:02:56]}  d5 {[%clk 0:03:00]} 6. Bd3 {[%clk 0:02:56]}  Nc6 {[%clk 0:03:00]} 7. O-O {[%clk 0:02:56]}  Be7 {[%clk 0:03:01]} 8. Nbd2 {[%clk 0:02:55]}  Nxd2 {[%clk 0:02:59]} 9. Bxd2 {[%clk 0:02:55]}  Bg4 {[%clk 0:02:58]} 10. c3 {[%clk 0:02:56]}  Qd7 {[%clk 0:02:58]} 11. Re1 {[%clk 0:02:42]}  O-O {[%clk 0:02:43]} 12. h3 {[%clk 0:02:19]}  Bf5 {[%clk 0:02:40]} 13. Bxf5 {[%clk 0:02:13]}  Qxf5 {[%clk 0:02:41]} 14. Qb3 {[%clk 0:02:13]}  Rab8 {[%clk 0:02:28]} 15. Ne5 {[%clk 0:02:12]}  Bd6 {[%clk 0:02:07]} 16. Ng4 {[%clk 0:02:12]}  Ne7 {[%clk 0:02:00]} 17. Ne3 {[%clk 0:02:12]}  Qf4 {[%clk 0:01:24]} 18. g3 {[%clk 0:02:02]}  Qf3 {[%clk 0:01:23]} 19. c4 {[%clk 0:02:02]}  dxc4 {[%clk 0:01:20]} 20. Nxc4 {[%clk 0:02:03]}  Qxb3 {[%clk 0:00:59]} 21. axb3 {[%clk 0:02:04]}  Nf5 {[%clk 0:00:31]} 22. Re4 {[%clk 0:01:40]}  a6 {[%clk 0:00:30]} 23. Ra5 {[%clk 0:01:02]}  g6 {[%clk 0:00:25]} 24. g4 {[%clk 0:01:02]}  Ng7 {[%clk 0:00:18]} 25. Nxd6 {[%clk 0:00:40]}  cxd6 {[%clk 0:00:18]} 26. d5 {[%clk 0:00:19]}  Rbd8 {[%clk 0:00:06]} 27. Re7 {[%clk 0:00:17]}  Rb8 {[%clk 0:00:05]} 28. Bf4 {[%clk 0:00:13]}  Rfd8 {[%clk 0:00:03]} 29. Ra4 {[%clk 0:00:14]}  Ne8 {[%clk 0:00:02]} 30. Bg5 {[%clk 0:00:05]}  f6 {[%clk 0:00:03]} 31. Bh6 {[%clk 0:00:05]}  Rdc8 {[%clk 0:00:03]} 32. Rae4 {[%clk 0:00:04]}  Rd8 {[%clk 0:00:02]} 33. R4e6 {[%clk 0:00:03]}  b5 {[%clk 0:00:02]} 34. b4 {[%clk 0:00:03]}  Rbc8 {[%clk 0:00:02]} 35. Kg2 {[%clk 0:00:03]}  Rb8 {[%clk 0:00:03]} 36. Re3 {[%clk 0:00:03]}  Rbc8 {[%clk 0:00:03]} 37. h4 {[%clk 0:00:02]}  Rb8 {[%clk 0:00:03]} 38. Rc3 {[%clk 0:00:03]}  Rbc8 {[%clk 0:00:02]} 39. Rce3 {[%clk 0:00:03]}  Rb8 {[%clk 0:00:02]} 40. h5 {[%clk 0:00:04]}  g5 {[%clk 0:00:02]} 41. f4 {[%clk 0:00:04]}  gxf4 {[%clk 0:00:03]} 42. Bxf4 {[%clk 0:00:04]}  Rbc8 {[%clk 0:00:03]} 43. Bh6 {[%clk 0:00:05]}  Rc2+ {[%clk 0:00:03]} 44. Kf3 {[%clk 0:00:05]}  Rcc8 {[%clk 0:00:04]} 45. Kf4 {[%clk 0:00:06]}  Rc4+ {[%clk 0:00:03]} 46. Kf5 {[%clk 0:00:05]}  Nc7 {[%clk 0:00:02]} 47. Rg7+ {[%clk 0:00:04]}  Kh8 {[%clk 0:00:03]} 48. Ree7 {[%clk 0:00:04]}  Ne8 {[%clk 0:00:02]} 49. Rxh7+ {[%clk 0:00:04]}  Kg8 {[%clk 0:00:03]} 50. Rhf7 {[%clk 0:00:04]}  Nc7 {[%clk 0:00:02]} 51. Rg7+ {[%clk 0:00:05]} 1-0


[Site "https://www.chess.com"]

[Event "Titled Tuesday Blitz May 30 Early 2023"]
[White "Duda, Jan-Krzysztof"]
[Black "Sjugirov, Sanan"]
[WhiteFideId "1170546"]
[BlackFideId "4189302"]
[WhiteElo "2790"]
[BlackElo "2569"]
[Result "1/2-1/2"]
[Round "06"]
[TimeControl "180+2"]
[Date "2023.05.30"]
[WhiteClock "0:00:08"]
[BlackClock "0:00:05"]

1. e4 {[%clk 0:03:00]}  e5 {[%clk 0:02:58]} 2. Nf3 {[%clk 0:02:59]}  Nc6 {[%clk 0:02:55]} 3. Bb5 {[%clk 0:02:59]}  a6 {[%clk 0:02:50]} 4. Ba4 {[%clk 0:02:59]}  Nf6 {[%clk 0:02:51]} 5. O-O {[%clk 0:03:00]}  Be7 {[%clk 0:02:51]} 6. Re1 {[%clk 0:02:59]}  b5 {[%clk 0:02:48]} 7. Bb3 {[%clk 0:02:59]}  O-O {[%clk 0:02:46]} 8. d3 {[%clk 0:02:56]}  d6 {[%clk 0:02:44]} 9. a3 {[%clk 0:02:56]}  Be6 {[%clk 0:02:21]} 10. Bxe6 {[%clk 0:02:49]}  fxe6 {[%clk 0:02:22]} 11. Nbd2 {[%clk 0:02:47]}  Qe8 {[%clk 0:02:11]} 12. Nf1 {[%clk 0:02:41]}  Nh5 {[%clk 0:02:09]} 13. Ng3 {[%clk 0:02:29]}  Nf4 {[%clk 0:02:09]} 14. a4 {[%clk 0:02:27]}  b4 {[%clk 0:02:07]} 15. c3 {[%clk 0:02:20]}  bxc3 {[%clk 0:02:02]} 16. bxc3 {[%clk 0:02:21]}  Rb8 {[%clk 0:02:02]} 17. d4 {[%clk 0:02:19]}  exd4 {[%clk 0:01:51]} 18. cxd4 {[%clk 0:02:20]}  Nb4 {[%clk 0:01:51]} 19. Bxf4 {[%clk 0:02:17]}  Rxf4 {[%clk 0:01:52]} 20. Re3 {[%clk 0:02:17]}  a5 {[%clk 0:01:48]} 21. Rc1 {[%clk 0:02:17]}  c6 {[%clk 0:01:37]} 22. Ne1 {[%clk 0:01:38]}  Rf8 {[%clk 0:01:37]} 23. Rb3 {[%clk 0:01:29]}  Qf7 {[%clk 0:01:30]} 24. Rf3 {[%clk 0:01:21]}  Qg6 {[%clk 0:01:30]} 25. Nd3 {[%clk 0:01:20]}  Rxf3 {[%clk 0:01:24]} 26. Qxf3 {[%clk 0:01:21]}  Qg5 {[%clk 0:01:17]} 27. Rd1 {[%clk 0:01:14]}  Qf6 {[%clk 0:00:53]} 28. Qe3 {[%clk 0:00:57]}  Nc2 {[%clk 0:00:49]} 29. Qd2 {[%clk 0:00:58]}  Nxd4 {[%clk 0:00:45]} 30. e5 {[%clk 0:00:58]}  dxe5 {[%clk 0:00:42]} 31. Qxa5 {[%clk 0:00:58]}  Rd8 {[%clk 0:00:23]} 32. Qe1 {[%clk 0:00:39]}  Nc2 {[%clk 0:00:07]} 33. Qc3 {[%clk 0:00:25]}  e4 {[%clk 0:00:04]} 34. Nxe4 {[%clk 0:00:05]}  Qxc3 {[%clk 0:00:04]} 35. Nxc3 {[%clk 0:00:05]}  Rd4 {[%clk 0:00:04]} 36. Nb2 {[%clk 0:00:03]}  Rxd1+ {[%clk 0:00:02]} 37. Nbxd1 {[%clk 0:00:03]}  Bb4 {[%clk 0:00:03]} 38. Kf1 {[%clk 0:00:03]}  Nd4 {[%clk 0:00:03]} 39. Ne2 {[%clk 0:00:03]}  Nb3 {[%clk 0:00:03]} 40. Ne3 {[%clk 0:00:03]}  Nc5 {[%clk 0:00:03]} 41. Nc2 {[%clk 0:00:03]}  Ba5 {[%clk 0:00:03]} 42. Ned4 {[%clk 0:00:04]}  Nxa4 {[%clk 0:00:03]} 43. Nxc6 {[%clk 0:00:04]}  Bc7 {[%clk 0:00:03]} 44. N2d4 {[%clk 0:00:05]}  Kf7 {[%clk 0:00:02]} 45. g3 {[%clk 0:00:05]}  Nc5 {[%clk 0:00:03]} 46. Ke2 {[%clk 0:00:06]}  h6 {[%clk 0:00:02]} 47. Nb5 {[%clk 0:00:06]}  Bb6 {[%clk 0:00:01]} 48. Nd6+ {[%clk 0:00:06]}  Kg6 {[%clk 0:00:01]} 49. Ne5+ {[%clk 0:00:06]}  Kh7 {[%clk 0:00:01]} 50. Ndc4 {[%clk 0:00:06]}  Bc7 {[%clk 0:00:01]} 51. Nc6 {[%clk 0:00:05]}  Kg6 {[%clk 0:00:02]} 52. Kf3 {[%clk 0:00:05]}  Kf6 {[%clk 0:00:02]} 53. Nb4 {[%clk 0:00:04]}  Nd7 {[%clk 0:00:02]} 54. Nd3 {[%clk 0:00:04]}  Nf8 {[%clk 0:00:01]} 55. Ke4 {[%clk 0:00:04]}  g5 {[%clk 0:00:01]} 56. Nc5 {[%clk 0:00:05]}  Ke7 {[%clk 0:00:02]} 57. Ne5 {[%clk 0:00:04]}  Bxe5 {[%clk 0:00:01]} 58. Kxe5 {[%clk 0:00:05]}  Ng6+ {[%clk 0:00:02]} 59. Kd4 {[%clk 0:00:05]}  Kf6 {[%clk 0:00:03]} 60. Ke4 {[%clk 0:00:05]}  Ke7 {[%clk 0:00:02]} 61. Nd3 {[%clk 0:00:06]}  Kf6 {[%clk 0:00:02]} 62. f3 {[%clk 0:00:06]}  Ne7 {[%clk 0:00:03]} 63. Ne5 {[%clk 0:00:07]}  Nf5 {[%clk 0:00:03]} 64. Ng4+ {[%clk 0:00:07]}  Kg6 {[%clk 0:00:02]} 65. Ke5 {[%clk 0:00:07]}  h5 {[%clk 0:00:03]} 66. Nf2 {[%clk 0:00:08]}  Kf7 {[%clk 0:00:02]} 67. Ne4 {[%clk 0:00:08]}  Kg6 {[%clk 0:00:03]} 68. g4 {[%clk 0:00:03]}  hxg4 {[%clk 0:00:03]} 69. fxg4 {[%clk 0:00:04]}  Ne3 {[%clk 0:00:03]} 70. h3 {[%clk 0:00:04]}  Nc4+ {[%clk 0:00:01]} 71. Kxe6 {[%clk 0:00:04]}  Ne3 {[%clk 0:00:02]} 72. Ke5 {[%clk 0:00:04]}  Ng2 {[%clk 0:00:02]} 73. Nf2 {[%clk 0:00:04]}  Nf4 {[%clk 0:00:02]} 74. h4 {[%clk 0:00:04]}  Ng2 {[%clk 0:00:02]} 75. h5+ {[%clk 0:00:04]}  Kh6 {[%clk 0:00:02]} 76. Nh3 {[%clk 0:00:04]}  Ne3 {[%clk 0:00:02]} 77. Nf2 {[%clk 0:00:03]}  Nxg4+ {[%clk 0:00:03]} 78. Nxg4+ {[%clk 0:00:04]}  Kxh5 {[%clk 0:00:04]} 79. Kf5 {[%clk 0:00:04]}  Kh4 {[%clk 0:00:04]} 80. Nf6 {[%clk 0:00:05]}  Kg3 {[%clk 0:00:05]} 81. Ng4 {[%clk 0:00:06]}  Kf3 {[%clk 0:00:05]} 82. Nf6 {[%clk 0:00:07]}  g4 {[%clk 0:00:05]} 83. Nxg4 {[%clk 0:00:08]} 1/2-1/2


[Site "https://www.chess.com"]

[Event "Titled Tuesday Blitz May 30 Early 2023"]
[White "Herrera Reyes, Jose Antonio"]
[Black "Lazavik, Denis"]
[WhiteFideId "2274914"]
[BlackFideId "13515110"]
[WhiteElo "2272"]
[BlackElo "2560"]
[Result "0-1"]
[Round "06"]
[TimeControl "180+2"]
[Date "2023.05.30"]
[WhiteClock "0:00:35"]
[BlackClock "0:01:43"]

1. Nf3 {[%clk 0:03:00]}  d5 {[%clk 0:03:00]} 2. g3 {[%clk 0:03:01]}  g6 {[%clk 0:02:59]} 3. Bg2 {[%clk 0:03:01]}  Bg7 {[%clk 0:03:00]} 4. d3 {[%clk 0:03:02]}  e5 {[%clk 0:03:00]} 5. h4 {[%clk 0:03:02]}  h6 {[%clk 0:02:58]} 6. Nc3 {[%clk 0:03:02]}  d4 {[%clk 0:02:53]} 7. Nb1 {[%clk 0:03:02]}  c5 {[%clk 0:02:52]} 8. O-O {[%clk 0:03:02]}  Nc6 {[%clk 0:02:51]} 9. e3 {[%clk 0:03:02]}  Nge7 {[%clk 0:02:51]} 10. exd4 {[%clk 0:03:00]}  cxd4 {[%clk 0:02:51]} 11. Re1 {[%clk 0:02:59]}  O-O {[%clk 0:02:51]} 12. c3 {[%clk 0:02:39]}  Bg4 {[%clk 0:02:50]} 13. Qb3 {[%clk 0:02:38]}  dxc3 {[%clk 0:02:47]} 14. Nxc3 {[%clk 0:02:37]}  Qxd3 {[%clk 0:02:46]} 15. Be3 {[%clk 0:02:33]}  Be6 {[%clk 0:02:33]} 16. Qa3 {[%clk 0:02:27]}  Rfd8 {[%clk 0:02:29]} 17. Rad1 {[%clk 0:02:08]}  Qf5 {[%clk 0:02:28]} 18. Nb5 {[%clk 0:01:42]}  Nd5 {[%clk 0:02:10]} 19. Nd6 {[%clk 0:01:36]}  Rxd6 {[%clk 0:02:09]} 20. Qxd6 {[%clk 0:01:35]}  Bf8 {[%clk 0:02:10]} 21. Qxd5 {[%clk 0:01:27]}  Bxd5 {[%clk 0:02:09]} 22. Rxd5 {[%clk 0:01:28]}  Qe6 {[%clk 0:02:06]} 23. Red1 {[%clk 0:01:23]}  e4 {[%clk 0:02:04]} 24. Ne1 {[%clk 0:01:19]}  Re8 {[%clk 0:02:00]} 25. a3 {[%clk 0:01:18]}  Bg7 {[%clk 0:01:58]} 26. b4 {[%clk 0:01:17]}  Qg4 {[%clk 0:01:46]} 27. Rd7 {[%clk 0:01:01]}  Ne5 {[%clk 0:01:44]} 28. Rd8 {[%clk 0:01:01]}  Rxd8 {[%clk 0:01:44]} 29. Rxd8+ {[%clk 0:01:01]}  Kh7 {[%clk 0:01:45]} 30. Rb8 {[%clk 0:00:58]}  Qe2 {[%clk 0:01:43]} 31. Bxe4 {[%clk 0:00:54]}  Qxe1+ {[%clk 0:01:42]} 32. Kg2 {[%clk 0:00:55]}  Ng4 {[%clk 0:01:43]} 33. Kf3 {[%clk 0:00:50]}  Nxe3 {[%clk 0:01:42]} 34. fxe3 {[%clk 0:00:51]}  Qf1+ {[%clk 0:01:42]} 35. Kg4 {[%clk 0:00:35]}  f5+ {[%clk 0:01:43]} 0-1


[Site "https://www.chess.com"]

[Event "Titled Tuesday Blitz May 30 Early 2023"]
[White "Hasangatin, Ramil"]
[Black "Svane, Rasmus"]
[WhiteFideId "4122160"]
[BlackFideId "4657101"]
[WhiteElo "2279"]
[BlackElo "2601"]
[Result "1-0"]
[Round "06"]
[TimeControl "180+2"]
[Date "2023.05.30"]
[WhiteClock "0:00:09"]
[BlackClock "0:00:06"]

1. e4 {[%clk 0:03:00]}  c6 {[%clk 0:02:58]} 2. Nf3 {[%clk 0:03:00]}  d5 {[%clk 0:02:59]} 3. d3 {[%clk 0:03:00]}  Bg4 {[%clk 0:02:59]} 4. h3 {[%clk 0:03:00]}  Bh5 {[%clk 0:02:59]} 5. Qe2 {[%clk 0:03:00]}  e6 {[%clk 0:02:59]} 6. g3 {[%clk 0:03:01]}  Bd6 {[%clk 0:02:53]} 7. Bg2 {[%clk 0:03:00]}  Ne7 {[%clk 0:02:53]} 8. O-O {[%clk 0:03:00]}  Nd7 {[%clk 0:02:54]} 9. Re1 {[%clk 0:03:00]}  O-O {[%clk 0:02:53]} 10. Nbd2 {[%clk 0:02:56]}  e5 {[%clk 0:02:53]} 11. Nf1 {[%clk 0:02:52]}  f6 {[%clk 0:02:47]} 12. Bd2 {[%clk 0:02:43]}  Qc7 {[%clk 0:02:47]} 13. Rad1 {[%clk 0:02:43]}  Rae8 {[%clk 0:02:47]} 14. Bc1 {[%clk 0:02:43]}  f5 {[%clk 0:02:34]} 15. exf5 {[%clk 0:02:41]}  Nxf5 {[%clk 0:02:35]} 16. g4 {[%clk 0:02:38]}  Nd4 {[%clk 0:02:35]} 17. Nxd4 {[%clk 0:02:35]}  exd4 {[%clk 0:02:36]} 18. Qd2 {[%clk 0:02:30]}  Bf4 {[%clk 0:02:29]} 19. Qb4 {[%clk 0:02:30]}  Rxe1 {[%clk 0:02:10]} 20. Rxe1 {[%clk 0:02:16]}  Bxc1 {[%clk 0:02:09]} 21. Rxc1 {[%clk 0:02:11]}  Qf4 {[%clk 0:01:53]} 22. Qd2 {[%clk 0:02:05]}  Bg6 {[%clk 0:01:51]} 23. Qxf4 {[%clk 0:02:03]}  Rxf4 {[%clk 0:01:52]} 24. Re1 {[%clk 0:02:01]}  h5 {[%clk 0:01:34]} 25. f3 {[%clk 0:01:49]}  h4 {[%clk 0:01:09]} 26. Re7 {[%clk 0:01:48]}  Rf7 {[%clk 0:01:09]} 27. Rxf7 {[%clk 0:01:45]}  Bxf7 {[%clk 0:01:10]} 28. f4 {[%clk 0:01:45]}  g5 {[%clk 0:01:11]} 29. fxg5 {[%clk 0:01:36]}  Kg7 {[%clk 0:01:11]} 30. Nd2 {[%clk 0:01:36]}  Ne5 {[%clk 0:01:09]} 31. Nb3 {[%clk 0:01:36]}  Kg6 {[%clk 0:01:03]} 32. Nxd4 {[%clk 0:01:36]}  Kxg5 {[%clk 0:01:04]} 33. Kf2 {[%clk 0:01:36]}  Be8 {[%clk 0:00:51]} 34. Ne6+ {[%clk 0:01:31]}  Kf6 {[%clk 0:00:50]} 35. Nf4 {[%clk 0:01:11]}  Ng6 {[%clk 0:00:45]} 36. Ke3 {[%clk 0:00:59]}  Ne5 {[%clk 0:00:25]} 37. b4 {[%clk 0:00:51]}  b6 {[%clk 0:00:22]} 38. b5 {[%clk 0:00:44]}  cxb5 {[%clk 0:00:15]} 39. Nxd5+ {[%clk 0:00:40]}  Kg5 {[%clk 0:00:15]} 40. Nc7 {[%clk 0:00:25]}  Bd7 {[%clk 0:00:14]} 41. Bd5 {[%clk 0:00:26]}  a5 {[%clk 0:00:09]} 42. Be6 {[%clk 0:00:25]}  Bc6 {[%clk 0:00:08]} 43. Bd5 {[%clk 0:00:24]}  Bd7 {[%clk 0:00:08]} 44. c3 {[%clk 0:00:24]}  Ng6 {[%clk 0:00:07]} 45. Bg2 {[%clk 0:00:19]}  Nf4 {[%clk 0:00:06]} 46. Bf1 {[%clk 0:00:19]}  Bc6 {[%clk 0:00:05]} 47. d4 {[%clk 0:00:19]}  Bg2 {[%clk 0:00:05]} 48. Bxg2 {[%clk 0:00:15]}  Nxg2+ {[%clk 0:00:06]} 49. Kf3 {[%clk 0:00:16]}  Nf4 {[%clk 0:00:06]} 50. d5 {[%clk 0:00:13]}  Nxh3 {[%clk 0:00:06]} 51. d6 {[%clk 0:00:13]}  Kf6 {[%clk 0:00:07]} 52. Nxb5 {[%clk 0:00:11]}  Ng5+ {[%clk 0:00:07]} 53. Kg2 {[%clk 0:00:11]}  Ke6 {[%clk 0:00:07]} 54. a4 {[%clk 0:00:08]}  Ne4 {[%clk 0:00:07]} 55. Kh3 {[%clk 0:00:07]}  Nxd6 {[%clk 0:00:05]} 56. Nxd6 {[%clk 0:00:06]}  Kxd6 {[%clk 0:00:06]} 57. c4 {[%clk 0:00:07]}  Kc5 {[%clk 0:00:06]} 58. g5 {[%clk 0:00:07]}  Kb4 {[%clk 0:00:01]} 59. g6 {[%clk 0:00:08]}  Kxa4 {[%clk 0:00:02]} 60. g7 {[%clk 0:00:08]}  Kb4 {[%clk 0:00:03]} 61. g8=Q {[%clk 0:00:09]}  a4 {[%clk 0:00:04]} 62. Qd5 {[%clk 0:00:09]}  a3 {[%clk 0:00:05]} 63. Qb5+ {[%clk 0:00:09]}  Kc3 {[%clk 0:00:05]} 64. Qxb6 {[%clk 0:00:09]}  a2 {[%clk 0:00:05]} 65. Qa5+ {[%clk 0:00:08]}  Kb3 {[%clk 0:00:06]} 66. Qxa2+ {[%clk 0:00:08]}  Kxa2 {[%clk 0:00:06]} 67. c5 {[%clk 0:00:09]} 1-0


[Site "https://www.chess.com"]

[Event "Titled Tuesday Blitz May 30 Early 2023"]
[White "Lenderman, Aleksandr"]
[Black "Sieciechowicz, Marcin"]
[WhiteFideId "2021285"]
[BlackFideId "1130170"]
[WhiteElo "2607"]
[BlackElo "2302"]
[Result "1-0"]
[Round "06"]
[TimeControl "180+2"]
[Date "2023.05.30"]
[WhiteClock "0:01:01"]
[BlackClock "0:00:08"]

1. Nf3 {[%clk 0:03:00]}  Nf6 {[%clk 0:02:59]} 2. c4 {[%clk 0:02:57]}  c6 {[%clk 0:02:59]} 3. Nc3 {[%clk 0:02:55]}  d5 {[%clk 0:03:00]} 4. e3 {[%clk 0:02:54]}  e6 {[%clk 0:03:00]} 5. b3 {[%clk 0:02:50]}  Nbd7 {[%clk 0:03:01]} 6. Bb2 {[%clk 0:02:50]}  Bd6 {[%clk 0:03:01]} 7. d4 {[%clk 0:02:49]}  Qe7 {[%clk 0:03:01]} 8. Bd3 {[%clk 0:02:43]}  O-O {[%clk 0:03:01]} 9. h3 {[%clk 0:02:38]}  b6 {[%clk 0:03:01]} 10. O-O {[%clk 0:02:37]}  Bb7 {[%clk 0:03:01]} 11. Re1 {[%clk 0:02:29]}  Rfe8 {[%clk 0:03:00]} 12. e4 {[%clk 0:02:29]}  dxe4 {[%clk 0:03:00]} 13. Nxe4 {[%clk 0:02:29]}  Nxe4 {[%clk 0:03:01]} 14. Bxe4 {[%clk 0:02:28]}  Bb4 {[%clk 0:03:00]} 15. Re2 {[%clk 0:02:26]}  Nf6 {[%clk 0:03:01]} 16. Bd3 {[%clk 0:02:21]}  c5 {[%clk 0:02:58]} 17. d5 {[%clk 0:02:20]}  Qd8 {[%clk 0:02:33]} 18. dxe6 {[%clk 0:02:16]}  Rxe6 {[%clk 0:02:22]} 19. Rxe6 {[%clk 0:02:15]}  fxe6 {[%clk 0:02:22]} 20. Ng5 {[%clk 0:02:10]}  Qd7 {[%clk 0:02:04]} 21. Bxh7+ {[%clk 0:02:09]}  Kh8 {[%clk 0:01:18]} 22. Qxd7 {[%clk 0:02:10]}  Nxd7 {[%clk 0:01:18]} 23. Be4 {[%clk 0:02:11]}  Bxe4 {[%clk 0:01:16]} 24. Nxe4 {[%clk 0:02:11]}  Rf8 {[%clk 0:01:03]} 25. a3 {[%clk 0:02:11]}  Ba5 {[%clk 0:01:03]} 26. Rd1 {[%clk 0:02:11]}  Nf6 {[%clk 0:01:03]} 27. Bxf6 {[%clk 0:02:09]}  gxf6 {[%clk 0:01:04]} 28. Rd7 {[%clk 0:02:09]}  a6 {[%clk 0:01:01]} 29. Ra7 {[%clk 0:02:00]}  f5 {[%clk 0:00:48]} 30. Ng5 {[%clk 0:02:00]}  Bc3 {[%clk 0:00:40]} 31. Nxe6 {[%clk 0:01:56]}  Re8 {[%clk 0:00:39]} 32. Nf4 {[%clk 0:01:47]}  Re1+ {[%clk 0:00:38]} 33. Kh2 {[%clk 0:01:47]}  Be5 {[%clk 0:00:39]} 34. g3 {[%clk 0:01:48]}  Bxf4 {[%clk 0:00:30]} 35. gxf4 {[%clk 0:01:49]}  Rb1 {[%clk 0:00:30]} 36. Rxa6 {[%clk 0:01:44]}  Rxb3 {[%clk 0:00:31]} 37. Kg2 {[%clk 0:01:38]}  Kg8 {[%clk 0:00:29]} 38. f3 {[%clk 0:01:26]}  Kg7 {[%clk 0:00:20]} 39. Kg3 {[%clk 0:01:26]}  Kg6 {[%clk 0:00:20]} 40. a4 {[%clk 0:01:26]}  Kh5 {[%clk 0:00:20]} 41. a5 {[%clk 0:01:23]}  b5 {[%clk 0:00:21]} 42. Rf6 {[%clk 0:01:21]}  bxc4 {[%clk 0:00:20]} 43. Rxf5+ {[%clk 0:01:21]}  Kg6 {[%clk 0:00:21]} 44. Rxc5 {[%clk 0:01:21]}  c3 {[%clk 0:00:22]} 45. Kg4 {[%clk 0:01:21]}  Ra3 {[%clk 0:00:23]} 46. h4 {[%clk 0:01:20]}  Kf6 {[%clk 0:00:23]} 47. h5 {[%clk 0:01:19]}  Kg7 {[%clk 0:00:23]} 48. Kg5 {[%clk 0:01:17]}  c2 {[%clk 0:00:24]} 49. Rc7+ {[%clk 0:01:17]}  Kf8 {[%clk 0:00:24]} 50. Rxc2 {[%clk 0:01:17]}  Rxa5+ {[%clk 0:00:24]} 51. f5 {[%clk 0:01:18]}  Ra6 {[%clk 0:00:25]} 52. Rc8+ {[%clk 0:01:13]}  Kf7 {[%clk 0:00:23]} 53. Rc7+ {[%clk 0:01:14]}  Kg8 {[%clk 0:00:22]} 54. f6 {[%clk 0:01:13]}  Ra1 {[%clk 0:00:22]} 55. h6 {[%clk 0:01:10]}  Rg1+ {[%clk 0:00:22]} 56. Kf5 {[%clk 0:01:10]}  Rh1 {[%clk 0:00:14]} 57. Rg7+ {[%clk 0:01:10]}  Kh8 {[%clk 0:00:14]} 58. Rg5 {[%clk 0:01:05]}  Ra1 {[%clk 0:00:09]} 59. f7 {[%clk 0:01:02]}  Ra8 {[%clk 0:00:08]} 60. Rg8+ {[%clk 0:01:01]} 1-0


[Site "https://www.chess.com"]

[Event "Titled Tuesday Blitz May 30 Early 2023"]
[White "Veiga, Jose Francisco R P Neves"]
[Black "Kozak, Adam"]
[WhiteFideId "1930087"]
[BlackFideId "753246"]
[WhiteElo "2320"]
[BlackElo "2469"]
[Result "1-0"]
[Round "06"]
[TimeControl "180+2"]
[Date "2023.05.30"]
[WhiteClock "0:01:22"]
[BlackClock "0:00:03"]

1. d4 {[%clk 0:03:00]}  e6 {[%clk 0:02:40]} 2. Nf3 {[%clk 0:03:00]}  d5 {[%clk 0:02:38]} 3. Bf4 {[%clk 0:03:00]}  Bd6 {[%clk 0:02:38]} 4. e3 {[%clk 0:03:00]}  Nf6 {[%clk 0:02:37]} 5. Nbd2 {[%clk 0:03:00]}  O-O {[%clk 0:02:38]} 6. Bd3 {[%clk 0:03:00]}  c5 {[%clk 0:02:37]} 7. dxc5 {[%clk 0:03:00]}  Bxc5 {[%clk 0:02:36]} 8. O-O {[%clk 0:03:00]}  a6 {[%clk 0:02:34]} 9. c4 {[%clk 0:03:00]}  dxc4 {[%clk 0:02:34]} 10. Nxc4 {[%clk 0:02:59]}  b5 {[%clk 0:02:34]} 11. Nce5 {[%clk 0:02:58]}  Bb7 {[%clk 0:02:33]} 12. Rc1 {[%clk 0:02:58]}  Bb6 {[%clk 0:02:25]} 13. Qe2 {[%clk 0:02:55]}  Nbd7 {[%clk 0:02:22]} 14. Rfd1 {[%clk 0:02:54]}  Nxe5 {[%clk 0:02:21]} 15. Bxe5 {[%clk 0:02:40]}  Qe7 {[%clk 0:02:15]} 16. Bd6 {[%clk 0:02:38]}  Qe8 {[%clk 0:02:04]} 17. Bxf8 {[%clk 0:02:38]}  Qxf8 {[%clk 0:02:05]} 18. e4 {[%clk 0:02:21]}  h6 {[%clk 0:02:04]} 19. e5 {[%clk 0:02:22]}  Nd5 {[%clk 0:02:00]} 20. Be4 {[%clk 0:02:18]}  Qe7 {[%clk 0:01:55]} 21. g3 {[%clk 0:02:07]}  Rb8 {[%clk 0:01:38]} 22. Nd4 {[%clk 0:02:04]}  Qg5 {[%clk 0:01:35]} 23. h4 {[%clk 0:02:03]}  Qe7 {[%clk 0:00:52]} 24. Nc6 {[%clk 0:02:00]}  Bxc6 {[%clk 0:00:53]} 25. Rxc6 {[%clk 0:02:01]}  Nb4 {[%clk 0:00:53]} 26. Rcd6 {[%clk 0:01:59]}  Nxa2 {[%clk 0:00:22]} 27. Rd7 {[%clk 0:01:59]}  Qc5 {[%clk 0:00:22]} 28. Qf3 {[%clk 0:01:55]}  Rf8 {[%clk 0:00:22]} 29. R1d6 {[%clk 0:01:44]}  Nb4 {[%clk 0:00:16]} 30. Rb7 {[%clk 0:01:39]}  Qc1+ {[%clk 0:00:04]} 31. Kg2 {[%clk 0:01:31]}  Bc7 {[%clk 0:00:05]} 32. Rd7 {[%clk 0:01:27]}  Bxe5 {[%clk 0:00:02]} 33. Rxf7 {[%clk 0:01:28]}  Rc8 {[%clk 0:00:01]} 34. Rxg7+ {[%clk 0:01:21]}  Bxg7 {[%clk 0:00:02]} 35. Qf7+ {[%clk 0:01:21]}  Kh8 {[%clk 0:00:03]} 36. Qxg7# {[%clk 0:01:22]} 1-0


[Site "https://www.chess.com"]

[Event "Titled Tuesday Blitz May 30 Early 2023"]
[White "Makarian, Rudik"]
[Black "Ehlvest, Jaan"]
[WhiteFideId "44105681"]
[BlackFideId "4500016"]
[WhiteElo "2461"]
[BlackElo "2442"]
[Result "1-0"]
[Round "06"]
[TimeControl "180+2"]
[Date "2023.05.30"]
[WhiteClock "0:01:55"]
[BlackClock "0:00:00"]

1. d4 {[%clk 0:03:00]}  Nf6 {[%clk 0:02:51]} 2. c4 {[%clk 0:03:01]}  e6 {[%clk 0:02:50]} 3. Nf3 {[%clk 0:03:02]}  c5 {[%clk 0:02:50]} 4. d5 {[%clk 0:03:02]}  d6 {[%clk 0:02:50]} 5. Nc3 {[%clk 0:03:02]}  exd5 {[%clk 0:02:50]} 6. cxd5 {[%clk 0:03:03]}  g6 {[%clk 0:02:50]} 7. h3 {[%clk 0:03:04]}  Bg7 {[%clk 0:02:50]} 8. e4 {[%clk 0:03:04]}  O-O {[%clk 0:02:49]} 9. Bd3 {[%clk 0:03:05]}  b5 {[%clk 0:02:49]} 10. Nxb5 {[%clk 0:02:58]}  Re8 {[%clk 0:02:47]} 11. Nd2 {[%clk 0:02:58]}  Nxd5 {[%clk 0:02:36]} 12. Nc4 {[%clk 0:02:58]}  Nb4 {[%clk 0:02:15]} 13. O-O {[%clk 0:02:58]}  Ba6 {[%clk 0:02:11]} 14. Ncxd6 {[%clk 0:02:52]}  Nxd3 {[%clk 0:01:59]} 15. Qxd3 {[%clk 0:02:53]}  Nc6 {[%clk 0:01:50]} 16. Qd5 {[%clk 0:02:38]}  Bxb5 {[%clk 0:01:13]} 17. Nxb5 {[%clk 0:02:39]}  Qb6 {[%clk 0:01:09]} 18. Nd6 {[%clk 0:02:29]}  Rf8 {[%clk 0:01:07]} 19. Be3 {[%clk 0:02:20]}  Nd4 {[%clk 0:00:52]} 20. e5 {[%clk 0:02:14]}  Rad8 {[%clk 0:00:46]} 21. Bxd4 {[%clk 0:02:10]}  cxd4 {[%clk 0:00:45]} 22. f4 {[%clk 0:02:06]}  Qxb2 {[%clk 0:00:34]} 23. Rab1 {[%clk 0:02:06]}  Qa3 {[%clk 0:00:28]} 24. Rb7 {[%clk 0:02:05]}  Qe3+ {[%clk 0:00:13]} 25. Kh2 {[%clk 0:02:02]}  g5 {[%clk 0:00:11]} 26. Rxf7 {[%clk 0:01:59]}  Rxf7 {[%clk 0:00:09]} 27. Qxf7+ {[%clk 0:01:58]}  Kh8 {[%clk 0:00:09]} 28. Qe6 {[%clk 0:01:59]}  h6 {[%clk 0:00:04]} 29. Nf7+ {[%clk 0:01:57]}  Kh7 {[%clk 0:00:05]} 30. Qf5+ {[%clk 0:01:54]}  Kg8 {[%clk 0:00:00]} 31. Nxd8 {[%clk 0:01:55]} 1-0


[Site "https://www.chess.com"]